bitfinex/quotes_ETHUSD_20250413
["timestamp","ask_amount","ask_price","bid_price","bid_amount"]
[1744504018925,6.10393,1638.3,1638.0,6.10493]
[1744504019230,4.02586464,1638.4,1638.3,0.7754]
[1744504019424,12.20599,1638.6,1638.3,0.7754]
[1744504019625,12.20599,1638.6,1638.1,6.10462]
[1744504019626,6.10356,1638.4,1638.1,0.7754]
[1744504019799,6.10318,1638.5,1638.1,0.7754]
[1744504019993,6.10318,1638.5,1638.1,6.87977]
[1744504020324,6.10356,1638.4,1638.1,0.7754]
[1744504020526,6.10318,1638.5,1638.1,6.87995]
[1744504020828,6.10253,1638.7,1638.3,6.10367]
[1744504021001,12.20519,1638.7,1638.3,6.10367]
[1744504021212,6.10279,1638.6,1638.2,6.87966]
[1744504021414,6.10317,1638.5,1638.2,0.7754]
[1744504021596,12.20768,1638.4,1638.0,6.88039]
[1744504021941,6.1039,1638.3,1638.0,0.7754]
[1744504024551,6.10426,1638.2,1638.0,0.7754]
[1744504024827,0.7653,1638.2,1637.8,0.8105]
[1744504025128,0.7653,1638.2,1637.3,0.3021374]
[1744504025129,6.10501,1638.0,1637.6,6.91694]
[1744504025296,6.715511,1638.0,1637.6,0.8105]
[1744504025495,6.10558,1637.9,1637.6,0.8105]
[1744504025919,6.715511,1638.0,1637.6,0.8105]
[1744504026138,12.820771,1638.0,1637.6,6.91684]
[1744504026341,6.10538,1637.9,1637.6,6.91684]
[1744504026513,6.10538,1637.9,1637.6,0.8105]
[1744504026826,6.10584,1637.8,1637.4,0.03]
[1744504026993,6.10651,1637.6,1637.4,0.7707]
[1744504027919,6.88226,1637.8,1637.4,0.7707]
[1744504028110,6.88226,1637.8,1637.4,6.87759]
[1744504028111,6.10606,1637.8,1637.4,6.87759]
[1744504028309,6.10635,1637.7,1637.4,0.7707]
[1744504028633,6.10687,1637.5,1637.3,0.3021374]
[1744504029336,6.10724,1637.4,1637.3,0.3021374]
[1744504029629,6.10687,1637.5,1637.3,0.3021374]
[1744504029833,6.10724,1637.4,1637.3,0.3021374]
[1744504030509,9.10724,1637.4,1637.3,0.3021374]
[1744504030710,11.109351,1637.4,1637.3,0.3021374]
[1744504031835,10.328651,1637.4,1637.3,0.3021374]
[1744504032636,4.221411,1637.4,1637.3,0.3021374]
[1744504033139,10.328651,1637.4,1637.3,0.3021374]
[1744504033527,8.20994691,1637.8,1637.4,6.10702]
[1744504033836,4.34935691,1637.8,1637.5,0.7718]
[1744504034016,12.21541,1637.9,1637.6,6.10646]
[1744504034218,3.0,1637.8,1637.6,6.10646]
[1744504034426,6.85983,1638.0,1637.6,6.10646]
[1744504034624,6.10561,1637.9,1637.5,6.87865]
[1744504034825,6.10576,1637.8,1637.5,0.7718]
[1744504036146,6.715971,1637.9,1637.5,0.7718]
[1744504036353,12.20957,1638.1,1637.7,6.10583]
[1744504037139,6.10514,1638.0,1637.6,6.10632]
[1744504037453,6.10464,1638.1,1637.7,6.10601]
[1744504037651,7.44717493,1638.1,1637.7,6.10601]
[1744504037857,6.10562,1637.9,1637.5,6.87855]
[1744504038352,6.10504,1638.0,1637.6,6.1063]
[1744504038542,6.10504,1638.0,1637.6,12.21261]
[1744504039926,3.0,1638.0,1637.8,0.8021]
[1744504040127,7.44726493,1638.1,1637.8,6.90779]
[1744504040458,3.0,1638.0,1637.8,6.90779]
[1744504041357,9.10443,1638.2,1637.8,6.90779]
[1744504041525,15.20903,1638.2,1637.8,6.90779]
[1744504042528,9.10443,1638.2,1637.8,6.90779]
[1744504042933,9.10443,1638.2,1637.9,6.10533]
[1744504042934,3.0,1638.2,1637.9,6.10533]
[1744504044054,12.45927,1638.5,1638.1,0.7843]
[1744504044227,6.356,1638.5,1638.1,6.88878]
[1744504044427,3.0,1638.4,1638.1,12.99325]
[1744504044649,6.10327,1638.5,1638.1,12.99325]
[1744504044852,6.1449596,1638.5,1638.2,6.10397]
[1744504045056,12.2481396,1638.5,1638.2,6.10397]
[1744504045253,6.1449596,1638.5,1638.2,12.20802]
[1744504045441,12.2128,1638.6,1638.2,12.20802]
[1744504045757,12.2128,1638.6,1637.9,13.762655]
[1744504045758,0.1232,1638.8,1638.4,6.10347]
[1744504046127,6.10295,1638.6,1638.3,0.7843]
[1744504046751,6.10245,1638.7,1638.3,6.88803]
[1744504046938,6.1028,1638.6,1638.3,6.88803]
[1744504048762,6.10245,1638.7,1638.3,12.99171]
[1744504049058,6.10245,1638.7,1638.3,12.99172]
[1744504049229,7.416481,1638.7,1638.3,6.88798]
[1744504049429,6.10278,1638.6,1638.3,0.7843]
[1744504050247,12.20583,1638.6,1638.3,0.7843]
[1744504050464,6.10278,1638.6,1638.3,0.7843]
[1744504051163,12.20579,1638.6,1638.3,0.7843]
[1744504051365,6.10329,1638.5,1638.3,0.7843]
[1744504051536,6.10329,1638.5,1638.1,0.7526]
[1744504051537,6.10386,1638.4,1638.1,0.7526]
[1744504051735,9.10407,1638.3,1638.1,0.7526]
[1744504051937,9.10407,1638.3,1637.9,12.46133]
[1744504052234,6.10439,1638.2,1637.9,9.002004]
[1744504052435,6.10439,1638.2,1637.9,7.1453]
[1744504052857,6.10439,1638.2,1637.9,13.25067]
[1744504053265,9.10407,1638.3,1637.9,13.25067]
[1744504054267,15.20831,1638.3,1637.9,13.25067]
[1744504055047,9.10407,1638.3,1637.9,19.3559]
[1744504055247,10.624829,1638.3,1637.9,19.3559]
[1744504055872,4.520759,1638.3,1638.0,6.1048]
[1744504056166,4.520759,1638.3,1638.1,6.10459]
[1744504056167,3.0,1638.3,1638.1,6.10459]
[1744504056364,6.10392,1638.3,1637.9,13.25065]
[1744504056569,6.10439,1638.2,1637.9,13.25065]
[1744504056770,6.10439,1638.2,1637.9,6.89465]
[1744504057248,7.325221,1638.2,1637.9,0.7893]
[1744504057446,9.10468,1638.1,1637.7,6.10608]
[1744504057654,12.21027,1638.0,1637.7,0.8206]
[1744504057852,6.1055,1637.9,1637.6,12.46047]
[1744504059075,6.10589,1637.8,1637.5,0.8206]
[1744504059874,6.10634,1637.7,1637.3,13.5300874]
[1744504060075,12.21272,1637.7,1637.3,13.5300874]
[1744504060974,6.107,1637.5,1637.3,0.3021374]
[1744504061148,9.71794,1637.4,1637.3,0.3021374]
[1744504061355,10.48994,1637.4,1637.3,0.3021374]
[1744504061674,9.71794,1637.4,1637.3,0.3021374]
[1744504062376,3.6107,1637.4,1637.3,0.3021374]
[1744504062565,3.0,1637.4,1637.3,0.3021374]
[1744504062964,3.0,1637.5,1637.3,0.3021374]
[1744504063278,3.0,1637.5,1637.3,6.4096874]
[1744504063673,19.38909,1637.8,1637.4,6.10722]
[1744504063875,1.221055,1637.9,1637.5,6.1066]
[1744504064082,12.21091,1637.9,1637.6,0.8289]
[1744504064470,3.0,1637.8,1637.6,0.8289]
[1744504065059,9.10598,1637.8,1637.6,0.8289]
[1744504065288,6.10612,1637.7,1637.6,0.8289]
[1744504065447,9.10598,1637.8,1637.6,0.8289]
[1744504065652,0.910598,1637.7,1637.6,0.8289]
[1744504065852,9.10598,1637.8,1637.6,0.8289]
[1744504066158,9.10598,1637.8,1637.3,0.3021374]
[1744504066159,6.10724,1637.4,1637.3,7.4e-06]
[1744504066483,0.8173,1637.2,1636.2,6.11172]
[1744504066781,0.8173,1637.2,1636.4,6.93964]
[1744504066782,9.10871,1637.1,1636.4,6.93964]
[1744504066953,6.10911,1636.9,1636.4,6.93964]
[1744504067147,12.21856,1636.9,1636.4,6.93964]
[1744504067555,6.10911,1636.9,1636.4,6.93963]
[1744504067883,12.21778,1637.0,1636.5,6.804413]
[1744504068089,6.10915,1636.9,1636.5,6.804413]
[1744504068384,12.21851,1636.9,1636.5,6.804413]
[1744504068557,9.10854,1637.1,1636.5,0.693963]
[1744504068753,9.10824,1637.2,1636.7,6.10949]
[1744504069186,6.10852,1637.1,1636.7,6.10949]
[1744504069354,6.10852,1637.1,1636.6,6.93896]
[1744504069555,6.10852,1637.1,1636.7,6.10979]
[1744504070454,6.10852,1637.1,1636.7,12.21949]
[1744504070661,0.8173,1637.4,1636.7,1.304839]
[1744504070865,6.10727,1637.4,1637.0,12.21706]
[1744504071068,6.10727,1637.4,1637.1,0.8289]
[1744504071274,3.0,1637.4,1637.1,6.93721]
[1744504071479,3.0,1637.4,1637.2,6.10789]
[1744504071673,12.21263,1637.7,1637.2,6.10776]
[1744504071883,6.10667,1637.6,1637.1,8.241788]
[1744504072076,6.10702,1637.5,1637.1,8.241788]
[1744504072272,6.10667,1637.6,1637.2,6.10795]
[1744504072472,6.10667,1637.6,1637.1,8.241788]
[1744504072673,6.10667,1637.6,1637.2,6.10784]
[1744504072879,6.10667,1637.6,1637.2,7.49355978]
[1744504073311,6.10667,1637.6,1637.2,7.49365978]
[1744504073823,6.10704,1637.5,1637.2,1.38571978]
[1744504074026,6.10704,1637.5,1637.1,6.93722]
[1744504074227,6.10784,1637.3,1637.1,0.8289]
[1744504074513,12.21577,1637.3,1637.1,0.8289]
[1744504075105,6.10784,1637.3,1637.1,0.8289]
[1744504075601,9.10741,1637.4,1637.1,0.8289]
[1744504077202,9.1074,1637.4,1637.1,1.522652]
[1744504077369,15.2149,1637.4,1637.1,1.522652]
[1744504078007,9.1074,1637.4,1637.1,1.522652]
[1744504078372,9.1074,1637.4,1636.9,0.7912]
[1744504078373,6.10872,1637.1,1636.9,0.7912]
[1744504078709,12.21794,1637.0,1636.7,0.7912]
[1744504078905,6.10896,1637.0,1636.7,0.7912]
[1744504079115,12.21799,1637.0,1636.7,0.7912]
[1744504080809,6.10896,1637.0,1636.7,0.7912]
[1744504081110,12.21795,1637.0,1636.7,0.7912]
[1744504082814,6.10896,1637.0,1636.7,0.7912]
[1744504083110,12.21795,1637.0,1636.7,0.7912]
[1744504084194,6.10896,1637.0,1636.7,6.90105]
[1744504084390,12.21709,1637.1,1636.7,8.202155]
[1744504084609,6.10845,1637.1,1636.7,2.092305]
[1744504084914,12.21796,1637.0,1636.7,0.7912]
[1744504085410,6.10897,1637.0,1636.7,0.7912]
[1744504085583,6.10896,1637.0,1636.7,0.7912]
[1744504086112,12.21801,1637.0,1636.7,0.7912]
[1744504086922,6.10948,1636.8,1636.5,0.8277]
[1744504087146,0.7792,1637.1,1636.5,0.8277]
[1744504087147,6.11,1636.7,1636.5,0.8277]
[1744504087287,6.11,1636.7,1636.4,6.449]
[1744504087288,3.0,1636.7,1636.4,6.11095]
[1744504087635,6.10887,1637.0,1636.6,6.11008]
[1744504087803,6.10923,1636.9,1636.5,6.93817]
[1744504088326,6.10913,1636.9,1636.5,6.93816]
[1744504089123,9.10874,1637.0,1636.6,6.11006]
[1744504089523,9.10874,1637.0,1636.6,12.22009]
[1744504090014,6.10874,1637.0,1636.7,6.10977]
[1744504091536,6.10933,1636.9,1636.5,6.93829]
[1744504091828,3.0,1636.8,1636.5,0.8277]
[1744504092127,6.10881,1637.0,1636.6,6.11004]
[1744504092423,6.90752,1637.1,1636.6,6.11004]
[1744504092743,6.10881,1637.0,1636.7,6.92718]
[1744504093031,12.2182,1637.2,1636.8,6.10928]
[1744504093190,19.93147,1637.2,1636.8,6.10928]
[1744504093391,13.82147,1637.2,1636.8,6.10928]
[1744504094021,7.71323,1637.2,1636.8,6.10928]
[1744504094321,15.21553,1637.3,1636.9,6.92647]
[1744504094891,12.21553,1637.3,1636.9,6.92647]
[1744504095121,6.10766,1637.3,1636.9,6.92647]
[1744504095327,12.21549,1637.3,1636.9,6.92647]
[1744504095536,6.10727,1637.4,1637.0,6.10837]
[1744504095828,6.10779,1637.3,1637.0,6.10863]
[1744504097323,6.94025,1637.2,1636.8,6.10935]
[1744504097496,6.10815,1637.2,1636.9,0.8175]
[1744504097692,12.2163,1637.2,1636.9,0.8175]
[1744504098430,6.10815,1637.2,1636.9,0.8175]
[1744504099720,6.10777,1637.3,1636.9,13.03562]
[1744504099930,6.10777,1637.3,1636.9,6.92656]
[1744504100835,6.10777,1637.3,1636.9,13.03547]
[1744504101036,12.21565,1637.3,1636.9,6.92641]
[1744504101331,1.56220589,1637.3,1637.0,6.10859]
[1744504101536,6.93948,1637.4,1637.0,6.10859]
[1744504101901,13.04693,1637.4,1637.0,6.10859]
[1744504102433,9.48180894,1637.6,1636.8,6.45]
[1744504102634,6.90308,1637.9,1637.1,0.7513]
[1744504102836,6.10596,1637.8,1637.4,0.7513]
[1744504103023,3.610596,1637.7,1637.4,0.7513]
[1744504103203,0.610596,1637.7,1637.4,6.85853]
[1744504103636,0.610596,1637.7,1637.4,6.85837]
[1744504103831,6.716736,1637.7,1637.4,6.85837]
[1744504104037,0.610596,1637.7,1637.4,6.85837]
[1744504104334,6.10469,1638.1,1637.7,6.10598]
[1744504104335,6.90213,1638.1,1637.7,6.10598]
[1744504104506,13.00703,1638.1,1637.7,6.85728]
[1744504104708,3.0,1638.0,1637.7,6.85728]
[1744504104915,6.90213,1638.1,1637.7,12.96318]
[1744504105128,8.98487346,1638.1,1637.7,12.96318]
[1744504105546,3.7975,1638.1,1637.9,6.10522]
[1744504105717,3.7975,1638.1,1637.7,0.7513]
[1744504105718,3.0,1638.1,1637.8,6.10557]
[1744504106244,6.10889,1637.0,1636.7,0.7513]
[1744504106447,6.107,1637.5,1636.9,0.64]
[1744504106448,8.68193894,1637.3,1636.9,0.64]
[1744504106647,3.0,1637.2,1636.9,0.64]
[1744504106846,9.108,1637.2,1636.9,0.64]
[1744504107323,15.21626,1637.2,1636.7,12.97055]
[1744504107736,15.21626,1637.2,1636.7,19.34955]
[1744504108046,3.0,1637.2,1636.8,8.044395]
[1744504108226,9.10799,1637.2,1636.8,8.044395]
[1744504108838,15.21623,1637.2,1636.8,8.044395]
[1744504109343,3.0,1637.2,1636.8,8.044235]
[1744504109529,3.0,1637.2,1636.9,6.10888]
[1744504109850,3.0,1637.2,1636.9,7.5241915]
[1744504110050,3.0,1637.2,1636.9,6.10888]
[1744504110349,9.108,1637.2,1636.9,6.10888]
[1744504111246,9.108,1637.2,1636.8,8.044235]
[1744504112551,3.0,1637.2,1636.8,8.044235]
[1744504112749,3.0,1637.2,1636.9,6.10894]
[1744504112957,9.10803,1637.2,1636.9,6.10894]
[1744504113561,3.0,1637.2,1637.0,6.10867]
[1744504113759,3.0,1637.2,1637.0,6.90957]
[1744504114051,6.10764,1637.3,1637.0,6.90957]
[1744504116455,18.59687,1637.5,1637.1,6.10834]
[1744504116755,0.44651034,1637.8,1637.2,0.8009]
[1744504116756,6.1059,1637.8,1637.2,0.8009]
[1744504116961,12.99578,1638.0,1637.2,0.8009]
[1744504116962,6.1054,1637.9,1637.2,0.8009]
[1744504117257,6.10737,1637.4,1637.2,0.8009]
[1744504117854,6.10715,1637.5,1637.2,0.8009]
[1744504118160,12.21422,1637.5,1637.2,0.8009]
[1744504118359,6.10729,1637.4,1637.2,0.8009]
[1744504120263,0.8171,1637.8,1637.2,2.129813]
[1744504120442,6.10554,1637.9,1637.6,0.7781]
[1744504120634,12.21118,1637.9,1637.6,0.7781]
[1744504121056,3.0,1637.8,1637.6,0.7781]
[1744504121565,9.10579,1637.8,1637.6,0.7781]
[1744504122063,6.10554,1637.9,1637.6,6.88458]
[1744504122560,6.10554,1637.9,1637.6,0.7781]
[1744504122758,6.10554,1637.9,1637.6,6.88458]
[1744504122964,3.0,1637.9,1637.6,6.88458]
[1744504125142,3.0,1637.9,1637.6,8.183724]
[1744504125463,3.0,1637.9,1637.6,6.88458]
[1744504126366,9.10539,1637.9,1637.6,6.88458]
[1744504126966,15.21105,1637.9,1637.6,0.7781]
[1744504127365,9.10539,1637.9,1637.6,0.7781]
[1744504128063,9.10539,1637.9,1637.6,6.88458]
[1744504128377,3.0,1637.9,1637.6,6.88444]
[1744504128877,7.325091,1638.2,1637.8,6.10562]
[1744504129169,6.10478,1638.1,1637.9,0.7781]
[1744504130376,15.20888,1638.2,1637.9,0.7781]
[1744504130574,0.8171,1638.4,1638.2,6.10413]
[1744504130863,6.11,1638.6,1638.2,6.90563]
[1744504130864,12.20597,1638.6,1638.2,6.90563]
[1744504131063,3.0,1638.5,1638.2,6.90561]
[1744504131236,6.10295,1638.6,1638.2,7.596171]
[1744504131439,6.10315,1638.5,1638.2,6.90561]
[1744504132472,3.0,1638.4,1638.2,6.90561]
[1744504132645,0.1232,1638.8,1638.4,0.7664]
[1744504132840,0.1232,1638.8,1638.4,6.8698]
[1744504133041,3.0,1638.7,1638.4,6.8698]
[1744504133576,3.0,1638.7,1638.4,0.7664]
[1744504133760,6.10314,1638.5,1638.3,6.378]
[1744504134573,12.20655,1638.5,1638.3,6.378]
[1744504135371,6.10351,1638.4,1638.3,6.378]
[1744504136770,6.10519,1638.0,1637.8,0.7664]
[1744504136970,3.0,1638.2,1637.6,1.60396558]
[1744504137168,12.21193,1637.8,1637.7,0.64]
[1744504137773,12.21193,1637.8,1637.6,0.771]
[1744504137976,6.10612,1637.7,1637.6,0.771]
[1744504138145,6.10612,1637.7,1637.6,1.411]
[1744504138843,6.10612,1637.7,1637.6,0.771]
[1744504140680,6.10687,1637.5,1637.4,7.188]
[1744504140881,6.10761,1637.3,1637.2,2.099913]
[1744504141086,6.10761,1637.3,1637.2,0.771]
[1744504141390,6.10761,1637.3,1637.1,6.416]
[1744504141776,12.21549,1637.3,1637.1,6.416]
[1744504142092,6.10798,1637.2,1637.1,6.416]
[1744504142458,6.10836,1637.1,1637.0,0.771]
[1744504143990,6.10889,1637.0,1636.8,7.2158]
[1744504144158,6.1091,1636.9,1636.8,7.2158]
[1744504146589,6.10889,1637.0,1636.8,7.2158]
[1744504146788,6.10793,1637.3,1636.8,7.93738]
[1744504146993,6.10802,1637.2,1636.8,20.15587]
[1744504147165,6.10859,1637.1,1636.8,7.93738]
[1744504147370,6.10882,1637.0,1636.8,7.93738]
[1744504147691,6.10882,1637.0,1636.8,7.2158]
[1744504148807,0.7591,1637.4,1636.8,7.2158]
[1744504148995,6.85694,1637.6,1637.2,0.8317]
[1744504149203,6.792594,1637.5,1637.2,0.8317]
[1744504149515,6.1069,1637.5,1637.2,0.8317]
[1744504149878,6.10663,1637.6,1637.2,6.9396]
[1744504150080,6.10663,1637.6,1637.2,6.93947]
[1744504150302,6.10702,1637.5,1637.2,0.8317]
[1744504150699,6.10702,1637.5,1637.2,7.2507]
[1744504150906,1.374402,1637.5,1637.2,6.419]
[1744504151103,0.7637,1637.5,1637.2,6.419]
[1744504151475,12.21502,1637.4,1637.2,6.419]
[1744504152013,12.97774,1637.5,1637.2,6.419]
[1744504152309,6.10733,1637.4,1637.2,6.419]
[1744504152713,6.87059,1637.5,1637.2,6.419]
[1744504152907,12.97769,1637.5,1637.2,6.419]
[1744504153113,12.21399,1637.5,1637.2,6.419]
[1744504154008,0.8111,1637.7,1637.2,6.419]
[1744504154009,6.10653,1637.6,1637.2,6.419]
[1744504154213,6.10697,1637.5,1637.2,6.419]
[1744504154386,3.0,1637.6,1637.3,0.7619]
[1744504154811,3.0,1637.6,1637.3,6.86949]
[1744504155215,9.10653,1637.6,1637.3,0.7619]
[1744504156417,9.10653,1637.6,1637.3,6.86945]
[1744504157314,9.10653,1637.6,1637.2,12.52679]
[1744504157489,7.017653,1637.5,1637.2,6.419]
[1744504157694,6.107,1637.5,1637.2,6.419]
[1744504157893,6.107,1637.5,1637.2,12.52696]
[1744504158294,6.107,1637.5,1637.2,6.419]
[1744504158495,12.2141,1637.5,1637.2,6.419]
[1744504158695,6.107,1637.5,1637.2,12.52698]
[1744504159016,6.107,1637.5,1637.2,13.38661622]
[1744504160284,6.10656,1637.6,1637.2,13.38661622]
[1744504160616,12.21332,1637.6,1637.2,13.38642622]
[1744504161018,6.10697,1637.5,1637.2,12.52679]
[1744504162216,6.10656,1637.6,1637.2,18.63459]
[1744504162417,6.10656,1637.6,1637.2,12.52679]
[1744504162718,9.1058,1637.8,1637.5,6.10679]
[1744504162890,15.2118,1637.8,1637.4,6.10709]
[1744504163095,15.21176,1637.8,1637.4,6.10709]
[1744504163787,9.1058,1637.8,1637.4,7.407033]
[1744504163987,3.0,1637.8,1637.5,6.10668]
[1744504164732,9.1059,1637.8,1637.4,13.514313]
[1744504165018,6.9308,1637.9,1637.6,0.7849]
[1744504165618,3.0,1637.9,1637.6,6.89138]
[1744504165815,6.10505,1638.0,1637.6,12.99774]
[1744504166026,8.60772642,1638.0,1637.6,12.99774]
[1744504166819,8.60772642,1638.0,1637.6,12.99761]
[1744504167125,8.60772642,1638.0,1637.6,6.89125]
[1744504167421,8.60772642,1638.0,1637.6,12.99754]
[1744504167616,8.60772642,1638.0,1637.6,6.89119]
[1744504167791,14.71303642,1638.0,1637.6,6.89119]
[1744504169701,6.10541,1637.9,1637.6,0.7849]
[1744504170526,6.10541,1637.9,1637.6,6.89139]
[1744504170988,6.10541,1637.9,1637.1,0.7508]
[1744504170989,3.0,1637.5,1637.1,0.7508]
[1744504171196,9.10701,1637.5,1637.1,6.85902]
[1744504172033,9.92202,1637.7,1637.1,0.7508]
[1744504172252,16.02845,1637.7,1637.3,6.10758]
[1744504172541,0.610541,1637.8,1637.5,6.1067]
[1744504172542,3.0,1637.8,1637.5,6.1067]
[1744504172900,9.1058,1637.8,1637.4,6.90535]
[1744504173357,15.21179,1637.8,1637.4,6.90535]
[1744504174229,6.10616,1637.7,1637.4,6.90535]
[1744504176625,6.10616,1637.7,1637.4,6.80535]
[1744504176795,6.10616,1637.7,1637.4,8.2187678]
[1744504177430,6.87299,1637.9,1637.4,2.1116178]
[1744504177730,6.10549,1637.9,1637.6,6.10646]
[1744504178099,6.10549,1637.9,1637.5,12.21341]
[1744504178511,6.10549,1637.9,1637.5,6.10669]
[1744504180500,12.21111,1637.9,1637.5,6.10669]
[1744504180830,12.21109,1637.9,1637.5,6.10669]
[1744504181130,12.21109,1637.9,1637.5,7.397897]
[1744504181933,6.10549,1637.9,1637.5,7.397897]
[1744504182141,9.93438,1638.1,1637.5,1.291207]
[1744504182442,8.67780416,1638.0,1637.6,6.10635]
[1744504182601,6.10515,1638.0,1637.6,6.10635]
[1744504182802,6.1054,1637.9,1637.5,6.10674]
[1744504183001,6.1054,1637.9,1637.5,12.2134]
[1744504183201,6.1054,1637.9,1637.6,6.10642]
[1744504183799,9.93434,1638.1,1637.7,13.014]
[1744504184199,3.8297,1638.1,1637.8,6.10568]
[1744504184443,0.7998,1638.3,1638.0,6.10479]
[1744504184934,6.10356,1638.4,1638.1,6.10461]
[1744504185322,13.00625,1638.5,1638.1,6.10461]
[1744504185499,15.19914042,1638.5,1638.1,6.10461]
[1744504186127,4.02586464,1638.7,1638.2,0.802]
[1744504186440,16.23105464,1638.7,1638.3,6.10374]
[1744504186825,6.10277,1638.6,1638.2,6.90625]
[1744504187456,6.10277,1638.6,1638.2,13.01027]
[1744504187651,6.10315,1638.5,1638.2,0.802]
[1744504187857,8.123542,1638.5,1638.1,6.10459]
[1744504188758,14.226922,1638.5,1638.1,6.10459]
[1744504189359,6.10351,1638.4,1638.1,6.10459]
[1744504190672,8.123542,1638.5,1638.1,6.10459]
[1744504190834,6.10277,1638.6,1638.1,6.10437]
[1744504191033,6.10318,1638.5,1638.1,12.209]
[1744504191234,6.10318,1638.5,1638.2,6.1042]
[1744504191435,12.896077,1638.6,1638.2,6.10413]
[1744504191631,6.10317,1638.5,1638.1,6.10458]
[1744504192040,6.793027,1638.6,1638.2,6.10425]
[1744504192646,12.896057,1638.6,1638.2,6.10425]
[1744504193070,6.793027,1638.6,1638.2,12.20837]
[1744504193236,6.10277,1638.6,1638.2,12.20837]
[1744504193656,6.10277,1638.6,1638.3,6.10381]
[1744504194054,6.9022,1638.7,1638.3,6.90021]
[1744504194460,3.0,1638.6,1638.3,0.7964]
[1744504194650,3.0,1638.6,1638.3,6.90018]
[1744504194971,6.10316,1638.5,1638.2,6.10411]
[1744504195173,9.10284,1638.6,1638.2,7.404618]
[1744504196073,9.10284,1638.6,1638.2,13.508718]
[1744504196572,9.10284,1638.6,1638.2,7.404608]
[1744504197072,15.20583,1638.6,1638.2,7.404608]
[1744504197374,9.10284,1638.6,1638.2,7.404608]
[1744504198176,9.10284,1638.6,1638.2,13.508708]
[1744504198943,9.10284,1638.6,1638.3,1.3508708]
[1744504199341,15.20582,1638.6,1638.3,1.3508708]
[1744504199556,15.20582,1638.6,1638.2,6.1041]
[1744504200273,9.10284,1638.6,1638.2,12.20818]
[1744504200482,3.0,1638.6,1638.3,6.91575]
[1744504200778,9.10277,1638.6,1638.3,6.91575]
[1744504202979,9.10277,1638.6,1638.3,0.8119]
[1744504203378,3.990257,1638.6,1638.1,0.7582]
[1744504203579,6.10463,1638.2,1637.9,7.1072]
[1744504203780,12.20794,1638.3,1638.0,0.64]
[1744504204159,6.10391,1638.3,1638.0,0.64]
[1744504204381,6.10401,1638.3,1638.0,0.64]
[1744504204553,6.10448,1638.2,1637.9,7.1072]
[1744504204885,6.10426,1638.2,1637.9,13.21236]
[1744504205481,6.10391,1638.3,1638.0,6.10496]
[1744504205669,12.98658,1638.4,1638.0,6.10496]
[1744504205874,6.10391,1638.3,1637.9,13.21236]
[1744504206075,6.10427,1638.2,1637.9,13.21236]
[1744504207490,6.10391,1638.3,1637.9,13.21236]
[1744504207802,6.1032,1638.5,1638.2,0.786]
[1744504207966,0.7571,1638.6,1638.3,6.10372]
[1744504208176,6.85989,1638.6,1638.3,6.792692]
[1744504208690,6.85989,1638.6,1638.3,0.688972]
[1744504208877,6.10323,1638.5,1638.2,6.89013]
[1744504210693,6.10323,1638.5,1638.2,0.786]
[1744504211585,6.10387,1638.4,1638.0,6.89094]
[1744504211800,0.7571,1638.3,1637.8,0.786]
[1744504211956,9.86247,1638.0,1637.9,0.64]
[1744504212157,6.10615,1637.7,1637.5,6.277]
[1744504212379,6.10603,1637.8,1637.5,6.277]
[1744504212575,6.86355,1637.7,1637.4,0.786]
[1744504212775,3.7571,1637.9,1637.6,6.10641]
[1744504213293,3.0,1637.9,1637.6,6.10641]
[1744504213504,3.0,1637.8,1637.5,6.10668]
[1744504213663,6.86336,1637.7,1637.3,6.10761]
[1744504213863,12.96982,1637.7,1637.3,8.064671]
[1744504214481,6.86336,1637.7,1637.3,8.064671]
[1744504214662,9.10577,1637.8,1637.4,6.10698]
[1744504215083,15.21176,1637.8,1637.4,6.10698]
[1744504217896,9.10577,1637.8,1637.4,6.10698]
[1744504218098,9.10577,1637.8,1637.4,7.4601421]
[1744504218582,0.8067,1637.6,1637.3,6.10758]
[1744504218918,6.91323,1637.6,1637.3,6.10758]
[1744504219984,6.10729,1637.4,1637.2,6.277]
[1744504221716,6.10692,1637.5,1637.2,6.277]
[1744504221867,6.91336,1637.6,1637.2,12.38489]
[1744504222267,6.10738,1637.4,1637.0,6.89931]
[1744504222510,6.10763,1637.3,1637.0,6.89931]
[1744504223017,6.89473,1637.3,1637.0,6.10861]
[1744504225429,6.10823,1637.2,1636.9,58.628]
[1744504225588,6.11018,1636.7,1636.3,6.11112]
[1744504225928,9.10923,1636.9,1636.5,6.14045]
[1744504226219,6.89668,1636.8,1636.4,6.11079]
[1744504226383,0.7871,1636.8,1636.4,6.11092]
[1744504226583,0.7871,1636.8,1636.5,6.87587]
[1744504226818,0.7871,1637.0,1636.7,6.10985]
[1744504227022,3.7871,1637.0,1636.7,6.10985]
[1744504227589,3.0,1637.0,1636.7,6.10972]
[1744504227918,3.0,1637.0,1636.7,12.21936]
[1744504228114,6.10836,1637.1,1636.7,13.441296]
[1744504229892,12.21701,1637.1,1636.7,6.10964]
[1744504231526,6.10836,1637.1,1636.7,6.10964]
[1744504231690,3.0,1637.1,1636.8,6.91012]
[1744504231890,3.0,1637.2,1636.9,6.1088]
[1744504232290,3.0,1637.2,1636.9,12.21776]
[1744504232492,6.10763,1637.3,1636.9,12.21776]